[Event "*** Titled Tuesday Blitz"]
[Site "Chess.com"]
[Date "2021.04.27"]
[Round "8"]
[White "blitzking1729"]
[Black "Nafania1"]
[Result "1/2-1/2"]
[WhiteElo "2666"]
[BlackElo "2550"]
[TimeControl "180+1"]
[EndTime "11:28:29 PDT"]
[Termination "Game drawn by repetition"]

1. Nf3 {[%clk 0:03:00.9]} 1... c5 {[%clk 0:02:59.6]} 2. c4 {[%clk 0:03:01.1]}
2... Nc6 {[%clk 0:02:59.7]} 3. g3 {[%clk 0:03:01.3]} 3... g6 {[%clk 0:02:59.8]}
4. Bg2 {[%clk 0:03:01.5]} 4... Bg7 {[%clk 0:03:00.3]} 5. O-O {[%clk 0:03:01.9]}
5... d6 {[%clk 0:02:59.7]} 6. Nc3 {[%clk 0:03:02.1]} 6... Bf5 {[%clk 0:02:59.3]}
7. d3 {[%clk 0:03:01.2]} 7... Qd7 {[%clk 0:02:59.1]} 8. Nd5 {[%clk 0:02:57.3]}
8... Rc8 {[%clk 0:02:52.7]} 9. e4 {[%clk 0:02:49.2]} 9... Bg4 {[%clk 0:02:51.7]}
10. Be3 {[%clk 0:02:45.8]} 10... Bxb2 {[%clk 0:02:46.7]} 11. Rb1 {[%clk
0:02:45.3]} 11... Bg7 {[%clk 0:02:46.4]} 12. Qb3 {[%clk 0:02:43.1]} 12... b6
{[%clk 0:02:43]} 13. Ng5 {[%clk 0:02:36.1]} 13... h6 {[%clk 0:02:32.4]} 14. Nf3
{[%clk 0:02:35.5]} 14... e6 {[%clk 0:02:27.2]} 15. Nf4 {[%clk 0:02:28.5]} 15...
Bxf3 {[%clk 0:02:17]} 16. Bxf3 {[%clk 0:02:28.3]} 16... Nge7 {[%clk 0:02:15.8]}
17. Bg2 {[%clk 0:02:25.5]} 17... O-O {[%clk 0:02:14.2]} 18. Ne2 {[%clk 0:02:20]}
18... Nd4 {[%clk 0:01:50.3]} 19. Nxd4 {[%clk 0:02:18]} 19... cxd4 {[%clk
0:01:47.9]} 20. Bd2 {[%clk 0:02:18.1]} 20... e5 {[%clk 0:01:30.4]} 21. f4 {[%clk
0:02:15.3]} 21... exf4 {[%clk 0:01:25.1]} 22. Bxf4 {[%clk 0:02:13.8]} 22... Nc6
{[%clk 0:01:24.3]} 23. Qb5 {[%clk 0:02:07.2]} 23... Rc7 {[%clk 0:01:23.5]} 24.
Kh1 {[%clk 0:01:51]} 24... g5 {[%clk 0:01:23.1]} 25. Bd2 {[%clk 0:01:47]} 25...
Ne5 {[%clk 0:01:23.2]} 26. Qb3 {[%clk 0:01:45.7]} 26... Qg4 {[%clk 0:01:03.3]}
27. Rf2 {[%clk 0:01:35.5]} 27... Qh5 {[%clk 0:01:00.1]} 28. Kg1 {[%clk
0:01:27.7]} 28... Ng4 {[%clk 0:00:59.6]} 29. Bf3 {[%clk 0:01:27.5]} 29... Qh3
{[%clk 0:00:53.9]} 30. Bxg4 {[%clk 0:01:07.3]} 30... Qxg4 {[%clk 0:00:53.8]} 31.
Bb4 {[%clk 0:01:05.9]} 31... Rd7 {[%clk 0:00:50]} 32. Rbf1 {[%clk 0:01:03.7]}
32... Be5 {[%clk 0:00:45.5]} 33. Kg2 {[%clk 0:00:48.6]} 33... Kg7 {[%clk
0:00:36.6]} 34. Qc2 {[%clk 0:00:35.2]} 34... h5 {[%clk 0:00:32.7]} 35. Qe2
{[%clk 0:00:27.9]} 35... Qxe2 {[%clk 0:00:32.6]} 36. Rxe2 {[%clk 0:00:28.8]}
36... f6 {[%clk 0:00:33]} 37. Rf5 {[%clk 0:00:26.7]} 37... Rb8 {[%clk
0:00:30.5]} 38. a4 {[%clk 0:00:25.6]} 38... a6 {[%clk 0:00:29.2]} 39. Rb2 {[%clk
0:00:25.4]} 39... Rdb7 {[%clk 0:00:27.9]} 40. Rf1 {[%clk 0:00:14.7]} 40... Kg6
{[%clk 0:00:27.6]} 41. h3 {[%clk 0:00:14.5]} 41... Kf7 {[%clk 0:00:13.5]} 42.
Ra1 {[%clk 0:00:13.7]} 42... Ke6 {[%clk 0:00:12.8]} 43. Rf1 {[%clk 0:00:13.4]}
43... Kd7 {[%clk 0:00:12.5]} 44. Ra1 {[%clk 0:00:12.3]} 44... Kc6 {[%clk
0:00:12.5]} 45. Rc1 {[%clk 0:00:11.6]} 45... Rc8 {[%clk 0:00:12.1]} 46. Ba3
{[%clk 0:00:11]} 46... Rcb8 {[%clk 0:00:11.7]} 47. Rcb1 {[%clk 0:00:11.1]} 47...
Kc7 {[%clk 0:00:10.2]} 48. Bb4 {[%clk 0:00:10.5]} 48... Kc6 {[%clk 0:00:10.1]}
49. Bd2 {[%clk 0:00:10]} 49... Kc7 {[%clk 0:00:08.4]} 50. Kf3 {[%clk 0:00:10.1]}
50... Kc6 {[%clk 0:00:08.6]} 51. Rc1 {[%clk 0:00:09.9]} 51... Rc8 {[%clk
0:00:07.4]} 52. Ra1 {[%clk 0:00:09.2]} 52... Rcb8 {[%clk 0:00:07.6]} 53. Rba2
{[%clk 0:00:07.9]} 53... Rc8 {[%clk 0:00:07.3]} 54. Rb1 {[%clk 0:00:05.1]} 54...
Rcb8 {[%clk 0:00:07.3]} 55. Rc2 {[%clk 0:00:05.3]} 55... Rc8 {[%clk 0:00:07.4]}
56. h4 {[%clk 0:00:05.3]} 56... g4+ {[%clk 0:00:06.6]} 57. Kf2 {[%clk
0:00:05.2]} 57... Rcb8 {[%clk 0:00:06.3]} 58. Rcb2 {[%clk 0:00:04.8]} 58... Kc7
{[%clk 0:00:05.9]} 59. Rc2 {[%clk 0:00:04.7]} 59... Kc6 {[%clk 0:00:06.1]} 60.
Bc1 {[%clk 0:00:04.7]} 60... Kc7 {[%clk 0:00:06.2]} 61. Bd2 {[%clk 0:00:04.5]}
61... Kc6 {[%clk 0:00:06.4]} 1/2-1/2

[Event "*** Titled Tuesday Blitz"]
[Site "Chess.com"]
[Date "2021.04.27"]
[Round "8"]
[White "LenkaPtacnikova"]
[Black "mjray79"]
[Result "0-1"]
[WhiteElo "2202"]
[BlackElo "2465"]
[TimeControl "180+1"]
[EndTime "11:28:36 PDT"]
[Termination "mjray79 won on time"]

1. Nf3 {[%clk 0:02:59.7]} 1... Nf6 {[%clk 0:02:59.6]} 2. g3 {[%clk 0:02:58.1]}
2... g6 {[%clk 0:03:00.5]} 3. Bg2 {[%clk 0:02:57.8]} 3... Bg7 {[%clk 0:03:01.4]}
4. O-O {[%clk 0:02:57.8]} 4... O-O {[%clk 0:03:02]} 5. d4 {[%clk 0:02:54.7]}
5... d6 {[%clk 0:03:01.6]} 6. c4 {[%clk 0:02:54.6]} 6... Nc6 {[%clk 0:03:00.5]}
7. Nc3 {[%clk 0:02:54.5]} 7... a6 {[%clk 0:03:00.7]} 8. e4 {[%clk 0:02:53.7]}
8... Bg4 {[%clk 0:02:52.1]} 9. h3 {[%clk 0:02:52.4]} 9... Bxf3 {[%clk
0:02:52.2]} 10. Bxf3 {[%clk 0:02:51.3]} 10... e5 {[%clk 0:02:53.1]} 11. d5
{[%clk 0:02:47]} 11... Nd4 {[%clk 0:02:53]} 12. Bg2 {[%clk 0:02:47.5]} 12... Re8
{[%clk 0:02:48.4]} 13. Be3 {[%clk 0:02:45.1]} 13... Nd7 {[%clk 0:02:43.4]} 14.
b4 {[%clk 0:02:30.7]} 14... f5 {[%clk 0:02:41.6]} 15. c5 {[%clk 0:02:27.4]}
15... dxc5 {[%clk 0:02:37.7]} 16. bxc5 {[%clk 0:02:25.2]} 16... Nxc5 {[%clk
0:02:38.6]} 17. exf5 {[%clk 0:02:21.8]} 17... gxf5 {[%clk 0:02:37.3]} 18. Rc1
{[%clk 0:02:19.2]} 18... Qd6 {[%clk 0:02:24.1]} 19. Re1 {[%clk 0:02:14.7]} 19...
Rad8 {[%clk 0:02:17.4]} 20. f4 {[%clk 0:02:12.8]} 20... Ne4 {[%clk 0:02:05.7]}
21. Nxe4 {[%clk 0:02:06.4]} 21... fxe4 {[%clk 0:02:05.7]} 22. Bxe4 {[%clk
0:02:00.8]} 22... Kh8 {[%clk 0:01:52]} 23. Qh5 {[%clk 0:01:52.2]} 23... h6
{[%clk 0:01:51.8]} 24. Bxd4 {[%clk 0:01:42.9]} 24... exd4 {[%clk 0:01:51.1]} 25.
Qf5 {[%clk 0:01:41.1]} 25... Kg8 {[%clk 0:01:42.5]} 26. Qh7+ {[%clk 0:01:38.6]}
26... Kf8 {[%clk 0:01:41.6]} 27. Qf5+ {[%clk 0:01:26]} 27... Qf6 {[%clk
0:01:38.2]} 28. Qg4 {[%clk 0:01:24.7]} 28... Re7 {[%clk 0:01:31.6]} 29. Bh7
{[%clk 0:01:05.5]} 29... d3 {[%clk 0:01:25.5]} 30. Rxe7 {[%clk 0:00:47.2]} 30...
Qxe7 {[%clk 0:01:26.4]} 31. Qf5+ {[%clk 0:00:38.5]} 31... Bf6 {[%clk 0:01:26]}
32. Qxd3 {[%clk 0:00:36.5]} 32... Rxd5 {[%clk 0:01:17.4]} 33. Qxd5 {[%clk
0:00:29]} 33... Qe3+ {[%clk 0:01:17.2]} 34. Kg2 {[%clk 0:00:27.6]} 34... Qxc1
{[%clk 0:01:17.2]} 35. Qd3 {[%clk 0:00:18.1]} 35... Qb2+ {[%clk 0:01:13.2]} 36.
Qc2 {[%clk 0:00:18.2]} 36... Qb6 {[%clk 0:01:06.9]} 37. Be4 {[%clk 0:00:18.3]}
37... c5 {[%clk 0:00:59.8]} 38. Kf3 {[%clk 0:00:17.9]} 38... Qc7 {[%clk
0:00:57.9]} 39. Qc4 {[%clk 0:00:18]} 39... b5 {[%clk 0:00:55.5]} 40. Qd5 {[%clk
0:00:18.2]} 40... Kg7 {[%clk 0:00:55.3]} 41. Bf5 {[%clk 0:00:18.2]} 41... c4
{[%clk 0:00:54.7]} 42. g4 {[%clk 0:00:17.7]} 42... c3 {[%clk 0:00:52]} 43. g5
{[%clk 0:00:17.5]} 43... hxg5 {[%clk 0:00:51.5]} 44. fxg5 {[%clk 0:00:17.8]}
44... Bxg5 {[%clk 0:00:52.4]} 45. Bc2 {[%clk 0:00:17.2]} 45... Qf4+ {[%clk
0:00:50.6]} 46. Ke2 {[%clk 0:00:15]} 46... Qe3+ {[%clk 0:00:50.7]} 47. Kf1
{[%clk 0:00:12.2]} 47... Qc1+ {[%clk 0:00:49.5]} 48. Qd1 {[%clk 0:00:12.1]}
48... Qxd1+ {[%clk 0:00:39.1]} 49. Bxd1 {[%clk 0:00:11.3]} 49... Kf6 {[%clk
0:00:40]} 50. Ke2 {[%clk 0:00:11.2]} 50... Ke5 {[%clk 0:00:39.6]} 51. Kd3 {[%clk
0:00:11.7]} 51... Bd2 {[%clk 0:00:39.1]} 52. Bf3 {[%clk 0:00:11]} 52... Kd6
{[%clk 0:00:38.6]} 53. Bb7 {[%clk 0:00:10.7]} 53... a5 {[%clk 0:00:38.6]} 54. h4
{[%clk 0:00:09.9]} 54... Kc5 {[%clk 0:00:37]} 55. h5 {[%clk 0:00:08.6]} 55...
Kb4 {[%clk 0:00:37.3]} 56. Bc6 {[%clk 0:00:07.8]} 56... Bh6 {[%clk 0:00:23.3]}
57. Be8 {[%clk 0:00:07.4]} 57... Bg7 {[%clk 0:00:22.2]} 58. Kc2 {[%clk
0:00:06.3]} 58... Kc4 {[%clk 0:00:16.1]} 59. Bf7+ {[%clk 0:00:06]} 59... Kc5
{[%clk 0:00:15.1]} 60. Kd3 {[%clk 0:00:04.4]} 60... Kb4 {[%clk 0:00:12.2]} 61.
Be8 {[%clk 0:00:03.6]} 61... Ka4 {[%clk 0:00:12.5]} 62. Bd7 {[%clk 0:00:03.1]}
62... Bh8 {[%clk 0:00:10.7]} 63. Be8 {[%clk 0:00:03]} 63... Ka3 {[%clk
0:00:06.5]} 64. Bxb5 {[%clk 0:00:02.4]} 64... Kb2 {[%clk 0:00:06.8]} 65. Ba4
{[%clk 0:00:02.3]} 65... Kxa2 {[%clk 0:00:07.1]} 66. Kc2 {[%clk 0:00:01.6]}
66... Ka3 {[%clk 0:00:07.4]} 67. Bd7 {[%clk 0:00:01.2]} 67... Kb4 {[%clk
0:00:07.8]} 0-1

[Event "*** Titled Tuesday Blitz"]
[Site "Chess.com"]
[Date "2021.04.27"]
[Round "8"]
[White "PawnEatingZombie"]
[Black "Taktikmonster"]
[Result "1/2-1/2"]
[WhiteElo "2265"]
[BlackElo "2412"]
[TimeControl "180+1"]
[EndTime "11:28:43 PDT"]
[Termination "Game drawn by repetition"]

1. d4 {[%clk 0:03:00.9]} 1... Nf6 {[%clk 0:02:59.1]} 2. c4 {[%clk 0:03:00.9]}
2... e6 {[%clk 0:02:58.5]} 3. Nc3 {[%clk 0:03:01.4]} 3... Bb4 {[%clk 0:02:58.2]}
4. Qc2 {[%clk 0:03:01.9]} 4... O-O {[%clk 0:02:57.8]} 5. e4 {[%clk 0:03:01.9]}
5... d5 {[%clk 0:02:57.4]} 6. e5 {[%clk 0:03:01.3]} 6... Ne4 {[%clk 0:02:57.8]}
7. Bd3 {[%clk 0:03:01.5]} 7... c5 {[%clk 0:02:57.6]} 8. Nf3 {[%clk 0:03:01.9]}
8... Nc6 {[%clk 0:02:57.3]} 9. O-O {[%clk 0:03:00]} 9... Bxc3 {[%clk 0:02:54.9]}
10. bxc3 {[%clk 0:02:56.8]} 10... f5 {[%clk 0:02:52.6]} 11. exf6 {[%clk
0:02:55.8]} 11... Nxf6 {[%clk 0:02:50.5]} 12. Ba3 {[%clk 0:02:48]} 12... b6
{[%clk 0:02:23.3]} 13. dxc5 {[%clk 0:02:47.6]} 13... Qe7 {[%clk 0:02:05.1]} 14.
cxd5 {[%clk 0:02:33.3]} 14... exd5 {[%clk 0:01:46.1]} 15. Rfe1 {[%clk
0:02:27.1]} 15... Qf7 {[%clk 0:01:39.9]} 16. cxb6 {[%clk 0:02:22.1]} 16... Rd8
{[%clk 0:01:32.6]} 17. b7 {[%clk 0:01:49.3]} 17... Bxb7 {[%clk 0:01:07.3]} 18.
Ng5 {[%clk 0:01:48.9]} 18... Qh5 {[%clk 0:01:05.7]} 19. Ne6 {[%clk 0:01:38.3]}
19... Re8 {[%clk 0:00:52.5]} 20. Nc7 {[%clk 0:01:11.9]} 20... Rxe1+ {[%clk
0:00:53.4]} 21. Rxe1 {[%clk 0:01:11.4]} 21... Rc8 {[%clk 0:00:47.4]} 22. Bd6
{[%clk 0:01:05.2]} 22... Na5 {[%clk 0:00:14.8]} 23. Qe2 {[%clk 0:00:47.3]} 23...
Nc4 {[%clk 0:00:10.9]} 24. Qxh5 {[%clk 0:00:46.3]} 24... Nxh5 {[%clk 0:00:10]}
25. Nb5 {[%clk 0:00:33.2]} 25... Nf6 {[%clk 0:00:06.6]} 26. Bg3 {[%clk
0:00:29.6]} 26... a6 {[%clk 0:00:04.2]} 27. Nd4 {[%clk 0:00:29.2]} 27... Ne4
{[%clk 0:00:03.8]} 28. Bxe4 {[%clk 0:00:27.8]} 28... dxe4 {[%clk 0:00:04.7]} 29.
h3 {[%clk 0:00:25.7]} 29... Nb2 {[%clk 0:00:04.7]} 30. Nf5 {[%clk 0:00:24]}
30... Rxc3 {[%clk 0:00:04.2]} 31. Nd6 {[%clk 0:00:24.1]} 31... Bd5 {[%clk
0:00:02.6]} 32. Nxe4 {[%clk 0:00:24]} 32... Bxe4 {[%clk 0:00:02.8]} 33. Rxe4
{[%clk 0:00:24]} 33... Nc4 {[%clk 0:00:03.2]} 34. Re7 {[%clk 0:00:23.1]} 34...
h5 {[%clk 0:00:02.3]} 35. h4 {[%clk 0:00:22.9]} 35... Rc2 {[%clk 0:00:02.6]} 36.
a4 {[%clk 0:00:22.4]} 36... Ra2 {[%clk 0:00:02.3]} 37. Rc7 {[%clk 0:00:18.9]}
37... Rxa4 {[%clk 0:00:02.7]} 38. Ra7 {[%clk 0:00:17.1]} 38... Ra1+ {[%clk
0:00:02.4]} 39. Kh2 {[%clk 0:00:16.7]} 39... a5 {[%clk 0:00:03.3]} 40. Bc7
{[%clk 0:00:15.2]} 40... a4 {[%clk 0:00:03.3]} 41. Kg3 {[%clk 0:00:10.6]} 41...
a3 {[%clk 0:00:03.8]} 42. Ra4 {[%clk 0:00:06.3]} 42... Nb2 {[%clk 0:00:03.1]}
43. Ra8+ {[%clk 0:00:05.2]} 43... Kf7 {[%clk 0:00:02.2]} 44. Be5 {[%clk
0:00:05.4]} 44... a2 {[%clk 0:00:02.5]} 45. Bxb2 {[%clk 0:00:04.4]} 45... Rd1
{[%clk 0:00:02.7]} 46. Rxa2 {[%clk 0:00:03.6]} 46... Rd3+ {[%clk 0:00:03.4]} 47.
f3 {[%clk 0:00:03.2]} 47... g6 {[%clk 0:00:03.8]} 48. Ra3 {[%clk 0:00:03.7]}
48... Rd2 {[%clk 0:00:03.7]} 49. Be5 {[%clk 0:00:04.3]} 49... Ke6 {[%clk
0:00:03.6]} 50. Bf4 {[%clk 0:00:04.7]} 50... Re2 {[%clk 0:00:03.8]} 51. Bg5
{[%clk 0:00:05.3]} 51... Kf5 {[%clk 0:00:03.8]} 52. Ra5+ {[%clk 0:00:05.4]}
52... Ke6 {[%clk 0:00:04.2]} 53. Ra8 {[%clk 0:00:05.8]} 53... Rc2 {[%clk
0:00:03.6]} 54. Re8+ {[%clk 0:00:05.7]} 54... Kf5 {[%clk 0:00:02.8]} 55. Rf8+
{[%clk 0:00:04.8]} 55... Ke5 {[%clk 0:00:02.4]} 56. Rg8 {[%clk 0:00:04.9]} 56...
Kf5 {[%clk 0:00:02.3]} 57. Re8 {[%clk 0:00:04.7]} 57... Rc4 {[%clk 0:00:01.6]}
58. Rd8 {[%clk 0:00:04.4]} 58... Rc6 {[%clk 0:00:01.6]} 59. Ra8 {[%clk
0:00:04.6]} 59... Rb6 {[%clk 0:00:01.5]} 60. Ra5+ {[%clk 0:00:04.9]} 60... Ke6
{[%clk 0:00:01.4]} 61. Ra2 {[%clk 0:00:04.5]} 61... Kf5 {[%clk 0:00:02.3]} 62.
Kf2 {[%clk 0:00:04.5]} 62... Rc6 {[%clk 0:00:03.2]} 63. g3 {[%clk 0:00:04.4]}
63... Rc5 {[%clk 0:00:02.6]} 64. Kg2 {[%clk 0:00:04.7]} 64... Rb5 {[%clk
0:00:03]} 65. Kh3 {[%clk 0:00:05.2]} 65... Ke6 {[%clk 0:00:03.4]} 66. g4 {[%clk
0:00:05.3]} 66... hxg4+ {[%clk 0:00:03.1]} 67. Kxg4 {[%clk 0:00:05]} 67... Rb4+
{[%clk 0:00:03.5]} 68. f4 {[%clk 0:00:05.2]} 68... Rb1 {[%clk 0:00:03.6]} 69.
Ra3 {[%clk 0:00:03.3]} 69... Rg1+ {[%clk 0:00:03.4]} 70. Rg3 {[%clk 0:00:03.6]}
70... Rh1 {[%clk 0:00:03.7]} 71. Rf3 {[%clk 0:00:01]} 71... Rg1+ {[%clk
0:00:04]} 72. Rg3 {[%clk 0:00:01.1]} 72... Rh1 {[%clk 0:00:04.9]} 73. Rf3 {[%clk
0:00:01.4]} 73... Rg1+ {[%clk 0:00:04.9]} 74. Rg3 {[%clk 0:00:02]} 1/2-1/2

[Event "*** Titled Tuesday Blitz"]
[Site "Chess.com"]
[Date "2021.04.27"]
[Round "8"]
[White "WisdomGame"]
[Black "Raud100"]
[Result "0-1"]
[WhiteElo "2148"]
[BlackElo "2462"]
[TimeControl "180+1"]
[EndTime "11:28:45 PDT"]
[Termination "Raud100 won on time"]

1. e4 {[%clk 0:03:00.9]} 1... d6 {[%clk 0:02:59.9]} 2. d4 {[%clk 0:02:59.9]}
2... Nf6 {[%clk 0:03:00.8]} 3. Nc3 {[%clk 0:02:59.8]} 3... g6 {[%clk 0:03:01.7]}
4. f4 {[%clk 0:02:59.5]} 4... Bg7 {[%clk 0:03:00.4]} 5. Nf3 {[%clk 0:02:59.8]}
5... c5 {[%clk 0:03:01.1]} 6. dxc5 {[%clk 0:02:58.5]} 6... Qa5 {[%clk
0:03:00.5]} 7. Bd3 {[%clk 0:02:40.2]} 7... Qxc5 {[%clk 0:03:00.1]} 8. Qe2 {[%clk
0:02:39.4]} 8... O-O {[%clk 0:03:00.7]} 9. Be3 {[%clk 0:02:38.5]} 9... Qa5
{[%clk 0:03:01.2]} 10. O-O {[%clk 0:02:37.4]} 10... Bg4 {[%clk 0:03:01.8]} 11.
h3 {[%clk 0:02:36.5]} 11... Bxf3 {[%clk 0:03:02.1]} 12. Qxf3 {[%clk 0:02:36.9]}
12... Nc6 {[%clk 0:03:01.8]} 13. g4 {[%clk 0:02:35.3]} 13... Nd7 {[%clk
0:03:02.1]} 14. Bd2 {[%clk 0:02:32.2]} 14... Nd4 {[%clk 0:02:56.3]} 15. Qf2
{[%clk 0:02:29.4]} 15... Nc5 {[%clk 0:02:56]} 16. Nd5 {[%clk 0:02:22]} 16... Qd8
{[%clk 0:02:53.1]} 17. Bc3 {[%clk 0:02:21.6]} 17... Nc6 {[%clk 0:02:47.5]} 18.
Bxg7 {[%clk 0:02:13.7]} 18... Kxg7 {[%clk 0:02:48.4]} 19. f5 {[%clk 0:02:10.5]}
19... f6 {[%clk 0:02:31.7]} 20. Nf4 {[%clk 0:02:06.2]} 20... a5 {[%clk
0:02:25.3]} 21. Rad1 {[%clk 0:01:41.4]} 21... Ne5 {[%clk 0:02:11.8]} 22. a3
{[%clk 0:01:32.9]} 22... a4 {[%clk 0:02:04.3]} 23. Qd4 {[%clk 0:01:08.3]} 23...
g5 {[%clk 0:02:02.3]} 24. Nd5 {[%clk 0:01:03.2]} 24... h5 {[%clk 0:01:52]} 25.
Be2 {[%clk 0:01:00.7]} 25... hxg4 {[%clk 0:01:49.4]} 26. Bxg4 {[%clk 0:00:59.7]}
26... Rh8 {[%clk 0:01:47.8]} 27. Kg2 {[%clk 0:00:58.7]} 27... Nxg4 {[%clk
0:01:18.1]} 28. hxg4 {[%clk 0:00:59.6]} 28... Rh4 {[%clk 0:01:18]} 29. Ne3
{[%clk 0:00:59.3]} 29... Qb6 {[%clk 0:01:10.9]} 30. Rh1 {[%clk 0:00:55.5]} 30...
Rah8 {[%clk 0:01:10]} 31. Rxh4 {[%clk 0:00:55.4]} 31... Rxh4 {[%clk 0:01:10.9]}
32. Rh1 {[%clk 0:00:55.4]} 32... Rxh1 {[%clk 0:00:58.4]} 33. Kxh1 {[%clk
0:00:56.3]} 33... Qc6 {[%clk 0:00:55.2]} 34. Nd5 {[%clk 0:00:53.9]} 34... Kf7
{[%clk 0:00:48.4]} 35. Qc4 {[%clk 0:00:51.8]} 35... Nd7 {[%clk 0:00:31.4]} 36.
Qxc6 {[%clk 0:00:21.5]} 36... bxc6 {[%clk 0:00:32.3]} 37. Nb4 {[%clk 0:00:21.2]}
37... Ne5 {[%clk 0:00:30.6]} 38. b3 {[%clk 0:00:19.4]} 38... axb3 {[%clk
0:00:28.3]} 39. cxb3 {[%clk 0:00:20.3]} 39... Ke8 {[%clk 0:00:27.7]} 40. a4
{[%clk 0:00:19.8]} 40... Kd7 {[%clk 0:00:27.3]} 41. Kg2 {[%clk 0:00:18.2]} 41...
Nxg4 {[%clk 0:00:26.9]} 42. a5 {[%clk 0:00:16.8]} 42... Kc7 {[%clk 0:00:25.6]}
43. a6 {[%clk 0:00:16.4]} 43... Ne5 {[%clk 0:00:25.3]} 44. Kf2 {[%clk
0:00:10.5]} 44... Kb6 {[%clk 0:00:25.4]} 45. Ke3 {[%clk 0:00:10.2]} 45... Ka7
{[%clk 0:00:21.3]} 46. Kf2 {[%clk 0:00:09]} 46... Kb6 {[%clk 0:00:20.9]} 47. Ke3
{[%clk 0:00:08.5]} 47... c5 {[%clk 0:00:15.9]} 48. Nd5+ {[%clk 0:00:07.9]} 48...
Kxa6 {[%clk 0:00:16.6]} 49. Nxe7 {[%clk 0:00:08.8]} 49... Kb5 {[%clk 0:00:13.6]}
50. Ng8 {[%clk 0:00:07.3]} 50... Nd7 {[%clk 0:00:13]} 51. Kd3 {[%clk 0:00:04.5]}
51... Kb4 {[%clk 0:00:12.7]} 52. Kc2 {[%clk 0:00:04.4]} 52... g4 {[%clk
0:00:13.3]} 53. Ne7 {[%clk 0:00:02.5]} 53... g3 {[%clk 0:00:12.7]} 54. Nd5+
{[%clk 0:00:02.7]} 54... Ka3 {[%clk 0:00:13.1]} 55. Ne3 {[%clk 0:00:01.6]} 55...
Ne5 {[%clk 0:00:12.7]} 56. Kc3 {[%clk 0:00:02.1]} 56... Ka2 {[%clk 0:00:11.3]}
57. Ng2 {[%clk 0:00:02.6]} 57... Kb1 {[%clk 0:00:11.4]} 58. b4 {[%clk
0:00:02.8]} 58... cxb4+ {[%clk 0:00:10.3]} 59. Kxb4 {[%clk 0:00:03.7]} 59... Kc2
{[%clk 0:00:10.8]} 60. Kb5 {[%clk 0:00:03.9]} 60... Kd3 {[%clk 0:00:11.2]} 61.
Kb6 {[%clk 0:00:03.7]} 61... Kxe4 {[%clk 0:00:11.6]} 62. Kc7 {[%clk 0:00:04.6]}
62... d5 {[%clk 0:00:12.2]} 63. Kd6 {[%clk 0:00:03.6]} 63... d4 {[%clk
0:00:13.1]} 64. Ke6 {[%clk 0:00:03.1]} 64... Ng4 {[%clk 0:00:13.4]} 65. Kf7
{[%clk 0:00:01.6]} 65... d3 {[%clk 0:00:13.8]} 66. Kg6 {[%clk 0:00:02.5]} 66...
d2 {[%clk 0:00:13.5]} 67. Kh5 {[%clk 0:00:02.9]} 67... d1=Q {[%clk 0:00:13.6]}
68. Nh4 {[%clk 0:00:02.2]} 68... Ne5+ {[%clk 0:00:12.9]} 69. Kh6 {[%clk
0:00:01.9]} 69... Qg4 {[%clk 0:00:12.9]} 70. Ng6 {[%clk 0:00:02.6]} 70... Qxf5
{[%clk 0:00:11.7]} 0-1